[Event "Niedersachsen-ch A 2024"]
[Site "Verden Aller"]
[Date "2024.01.05"]
[Round "4.32"]
[White "Arndt, Felix"]
[Black "Nuerenberg, Marius"]
[Result "0-1"]
[ECO "E19"]
[WhiteElo "1901"]
[BlackElo "1764"]
[Annotator "NA RC"]
[PlyCount "64"]
[EventDate "2024.01.01"]
[EventType "swiss"]
[EventCountry "GER"]
[SourceTitle "playchess.com"]
[Source "ChessBase"]
[SourceQuality "1"]
[TimeControl "40/5400+30:1800+30"]

1. d4 {[%emt 0:00:03]} Nf6 {[%emt 0:00:04]} 2. c4 {[%emt 0:00:10]} e6 {[%emt 0:00:05]} 3. Nf3 {[%emt 0:00:12]} b6 {[%emt 0:00:05]} 4. g3 {[%emt 0:00:28]} Bb7 {[%emt 0:00:04]} 5. Bg2 {[%emt 0:00:10]} Be7 {[%emt 0:00:06]} 6. O-O {[%emt 0:00:21]} Ne4 {[%emt 0:02:45]} 7. Nc3 {[%emt 0:00:26]} Nxc3 {[%emt 0:00:07]} 8. bxc3 {[%emt 0:00:06]} d6 {[%emt 0:02:08]} 9. Qc2 {[%emt 0:01:58]} Nd7 {[%emt 0:08:28]} 10. e4 {[%emt 0:03:58]} O-O {[%emt 0:01:22]} 11. a4 {[%emt 0:04:32]} a5 {[%emt 0:00:24]} 12. Ba3 {[%emt 0:00:19]} Re8 {[%emt 0:12:37]} 13. Rad1 {[%emt 0:05:04]} Qc8 {[%emt 0:22:45]} 14. Rfe1 {[%emt 0:10:23]} d5 {[%emt 0:07:24]} 15. Bxe7 {[%emt 0:00:36]} dxe4 {[%emt 0:00:10]} 16. Ng5 {[%emt 0:05:01]} Rxe7 {[%emt 0:05:06]} 17. Nxe4 {[%emt 0:08:36]} Nf6 {[%emt 0:07:52]} 18. d5 {[%emt 0:10:17]} Nxe4 {[%emt 0:02:16]} 19. Rxe4 {[%emt 0:01:38]} e5 {[%emt 0:10:27]} 20. Rde1 {[%emt 0:03:02]} Qf5 {[%emt 0:02:00]} 21. f4 {[%emt 0:03:08]} f6 {[%emt 0:01:40]} 22. Qe2 {[%emt 0:00:52]} Rae8 {[%emt 0:01:00]} 23. Bf3 {[%emt 0:05:54]} Qd7 {[%emt 0:00:54]} 24. fxe5 {[%emt 0:14:24]} Rxe5 {[%emt 0:01:51]} 25. Qc2 {[%emt 0:00:34]} Qd6 {[%emt 0:03:08]} 26. Bg4 {[%emt 0:04:14]} g6 {[%emt 0:02:47]} 27. Rxe5 {[%emt 0:01:21]} Rxe5 {[%emt 0:00:10]} 28. Rxe5 {[%emt 0:03:32]} Qxe5 {[%emt 0:00:07]} 29. Be6+ {[%emt 0:01:15]} Kg7 {[%emt 0:00:01]} 30. Qd2 {[%emt 0:02:25]} Qe4 {[%emt 0:00:53]} 31. Qd4 {[%emt 0:01:58]} Qe1+ {[%emt 0:00:14]} 32. Kg2 {[%emt 0:00:12]} Qxe6 {[%emt 0:00:12]} 0-1

[Event "Niedersachsen-ch A 2024"]
[Site "Verden Aller"]
[Date "2024.01.05"]
[Round "4.34"]
[White "Moerke, Niklas"]
[Black "Aden, Keno"]
[Result "1/2-1/2"]
[ECO "B12"]
[WhiteElo "1800"]
[BlackElo "1832"]
[Annotator "NA RC"]
[PlyCount "69"]
[EventDate "2024.01.01"]
[EventType "swiss"]
[EventCountry "GER"]
[SourceTitle "playchess.com"]
[Source "ChessBase"]
[SourceQuality "1"]
[TimeControl "40/5400+30:1800+30"]

1. e4 {[%emt 0:00:02]} c6 {[%emt 0:01:09]} 2. d4 {[%emt 0:00:10]} d5 {[%emt 0:00:20]} 3. e5 {[%emt 0:00:06]} Bf5 {[%emt 0:00:06]} 4. h4 {[%emt 0:00:06]} h5 {[%emt 0:00:03]} 5. Bd3 {[%emt 0:00:08]} Bxd3 {[%emt 0:00:04]} 6. Qxd3 {[%emt 0:00:05]} e6 {[%emt 0:00:05]} 7. Nf3 {[%emt 0:00:57]} Qa5+ {[%emt 0:02:14]} 8. c3 {[%emt 0:00:58]} Qa6 {[%emt 0:00:17]} 9. Qxa6 {[%emt 0:01:41]} Nxa6 {[%emt 0:00:01]} 10. O-O {[%emt 0:00:46]} Ne7 {[%emt 0:01:17]} 11. Na3 {[%emt 0:00:54]} Nf5 {[%emt 0:01:00]} 12. Nc2 {[%emt 0:00:41]} Be7 {[%emt 0:01:59]} 13. g3 {[%emt 0:00:25]} O-O {[%emt 0:00:52]} 14. Bg5 {[%emt 0:00:52]} Rac8 {[%emt 0:05:11]} 15. Ne3 {[%emt 0:01:02]} Nxe3 {[%emt 0:04:04]} 16. fxe3 {[%emt 0:03:45]} f6 {[%emt 0:25:56]} 17. Bf4 {[%emt 0:01:32]} f5 {[%emt 0:08:01]} 18. Bg5 {[%emt 0:01:47]} Rf7 {[%emt 0:05:11]} 19. Bxe7 {[%emt 0:01:40]} Rxe7 {[%emt 0:00:44]} 20. a4 {[%emt 0:02:00]} c5 {[%emt 0:03:25]} 21. Nd2 {[%emt 0:05:30]} c4 {[%emt 0:03:04]} 22. Nb1 {[%emt 0:05:28]} Nb8 {[%emt 0:01:02]} 23. Na3 {[%emt 0:00:42]} a6 {[%emt 0:00:32]} 24. Nc2 {[%emt 0:00:17]} Nc6 {[%emt 0:01:41]} 25. a5 {[%emt 0:00:38]} g6 {[%emt 0:04:08]} 26. Kf2 {[%emt 0:01:20]} Rg7 {[%emt 0:04:33]} 27. Ne1 {[%emt 0:02:16]} Nd8 {[%emt 0:04:34]} 28. Nf3 {[%emt 0:03:28]} Re7 {[%emt 0:00:49]} 29. Ke2 {[%emt 0:02:12]} Kf8 {[%emt 0:02:57]} 30. Kd2 {[%emt 0:04:32]} Rec7 {[%emt 0:01:04]} 31. Ra4 {[%emt 0:04:05]} Nc6 {[%emt 0:01:11]} 32. Rb1 {[%emt 0:01:37]} Na7 {[%emt 0:01:19]} 33. Ne1 {[%emt 0:02:05]} Ke7 {[%emt 0:02:12]} 34. Nc2 {[%emt 0:08:28]} Nb5 {[%emt 0:01:06]} 35. Raa1 {[%emt 0:09:46]} 1/2-1/2

[Event "Niedersachsen-ch A 2024"]
[Site "Verden Aller"]
[Date "2024.01.05"]
[Round "4.35"]
[White "Stiller, Maximilian"]
[Black "Stummeyer, Dieter"]
[Result "0-1"]
[ECO "D05"]
[WhiteElo "1786"]
[BlackElo "1804"]
[Annotator "NA RC"]
[PlyCount "102"]
[EventDate "2024.01.01"]
[EventType "swiss"]
[EventCountry "GER"]
[SourceTitle "playchess.com"]
[Source "ChessBase"]
[SourceQuality "1"]
[TimeControl "40/5400+30:1800+30"]

1. d4 {[%emt 0:00:04]} Nf6 {[%emt 0:00:07]} 2. Nf3 {[%emt 0:00:06]} d5 {[%emt 0:00:05]} 3. e3 {[%emt 0:00:18]} Nbd7 {[%emt 0:00:13]} 4. Bd3 {[%emt 0:00:14]} e6 {[%emt 0:00:34]} 5. O-O {[%emt 0:00:09]} b6 {[%emt 0:00:16]} 6. Nbd2 {[%emt 0:00:11]} Bb7 {[%emt 0:00:12]} 7. b3 {[%emt 0:00:10]} Bd6 {[%emt 0:01:20]} 8. Bb2 {[%emt 0:00:12]} O-O {[%emt 0:00:13]} 9. Ne5 {[%emt 0:00:17]} c5 {[%emt 0:01:08]} 10. f4 {[%emt 0:00:25]} Rc8 {[%emt 0:00:59]} 11. Qf3 {[%emt 0:01:00]} cxd4 {[%emt 0:02:42]} 12. exd4 {[%emt 0:00:13]} Qc7 {[%emt 0:02:23]} 13. Rae1 {[%emt 0:03:32]} Bb4 {[%emt 0:01:07]} 14. Re2 {[%emt 0:23:05]} Bc3 {[%emt 0:02:58]} 15. Bxc3 {[%emt 0:00:54]} Qxc3 {[%emt 0:00:02]} 16. Qe3 {[%emt 0:06:07]} Qb4 {[%emt 0:06:22]} 17. Kh1 {[%emt 0:04:30]} g6 {[%emt 0:01:11]} 18. Rf3 {[%emt 0:03:34]} Rc3 {[%emt 0:03:50]} 19. Nb1 {[%emt 0:02:12]} Nxe5 {[%emt 0:01:19]} 20. fxe5 {[%emt 0:01:06]} Ne4 {[%emt 0:03:52]} 21. Qh6 {[%emt 0:08:53]} Rc7 {[%emt 0:07:08]} 22. Bxe4 {[%emt 0:08:15]} dxe4 {[%emt 0:01:15]} 23. c3 {[%emt 0:00:08]} exf3 {[%emt 0:01:38]} 24. Re3 {[%emt 0:13:06]} Qe7 {[%emt 0:03:24]} 25. gxf3 {[%emt 0:00:27]} f6 {[%emt 0:00:41]} 26. Kg2 {[%emt 0:00:41]} fxe5 {[%emt 0:00:42]} 27. dxe5 {[%emt 0:00:07]} Rf5 {[%emt 0:01:45]} 28. Nd2 {[%emt 0:00:34]} Qg5+ {[%emt 0:03:27]} 29. Qxg5 {[%emt 0:00:08]} Rxg5+ {[%emt 0:00:35]} 30. Kf2 {[%emt 0:00:02]} Rf7 {[%emt 0:00:37]} 31. Nc4 {[%emt 0:00:38]} Rgf5 {[%emt 0:00:57]} 32. Nd2 {[%emt 0:00:11]} g5 {[%emt 0:00:41]} 33. h3 {[%emt 0:00:17]} h5 {[%emt 0:00:08]} 34. Rd3 {[%emt 0:00:31]} Rxe5 {[%emt 0:01:02]} 35. Kg3 {[%emt 0:00:31]} Rd5 {[%emt 0:00:58]} 36. Rxd5 {[%emt 0:00:36]} exd5 {[%emt 0:00:17]} 37. c4 {[%emt 0:00:43]} dxc4 {[%emt 0:00:20]} 38. bxc4 {[%emt 0:00:15]} Kg7 {[%emt 0:00:44]} 39. a4 {[%emt 0:01:57]} Rd7 {[%emt 0:01:17]} 40. c5 {[%emt 0:01:13]} Rxd2 {[%emt 0:00:17]} 41. h4 {[%emt 0:30:14]} gxh4+ {[%emt 0:31:39]} 42. Kxh4 {[%emt 0:00:20]} bxc5 {[%emt 0:00:16]} 43. f4 {[%emt 0:00:09]} Rd4 {[%emt 0:00:51]} 44. a5 {[%emt 0:00:14]} Rxf4+ {[%emt 0:00:24]} 45. Kg3 {[%emt 0:00:20]} Rd4 {[%emt 0:00:54]} 46. a6 {[%emt 0:00:22]} Bxa6 {[%emt 0:00:19]} 47. Kf2 {[%emt 0:00:39]} c4 {[%emt 0:00:09]} 48. Kg1 {[%emt 0:00:14]} Rd2 {[%emt 0:00:05]} 49. Kh1 {[%emt 0:00:14]} c3 {[%emt 0:00:47]} 50. Kg1 {[%emt 0:00:06]} c2 {[%emt 0:00:13]} 51. Kh1 {[%emt 0:00:05]} c1=R# {[%emt 0:00:20]} 0-1

[Event "Niedersachsen-ch A 2024"]
[Site "Verden Aller"]
[Date "2024.01.05"]
[Round "4.36"]
[White "Trunz, Tamila"]
[Black "Bisa, Gani"]
[Result "0-1"]
[ECO "B84"]
[WhiteElo "1766"]
[BlackElo "1931"]
[Annotator "NA RC"]
[PlyCount "106"]
[EventDate "2024.01.01"]
[EventType "swiss"]
[EventCountry "GER"]
[SourceTitle "playchess.com"]
[Source "ChessBase"]
[SourceQuality "1"]
[TimeControl "40/5400+30:1800+30"]

1. e4 {[%emt 0:00:03]} c5 {[%emt 0:00:05]} 2. Nf3 {[%emt 0:00:09]} d6 {[%emt 0:00:06]} 3. d4 {[%emt 0:00:05]} cxd4 {[%emt 0:00:12]} 4. Nxd4 {[%emt 0:00:10]} Nf6 {[%emt 0:00:06]} 5. Nc3 {[%emt 0:00:06]} a6 {[%emt 0:00:04]} 6. Be2 {[%emt 0:00:53]} b5 {[%emt 0:00:26]} 7. a3 {[%emt 0:00:28]} Bb7 {[%emt 0:00:12]} 8. f3 {[%emt 0:00:56]} e6 {[%emt 0:00:10]} 9. Be3 {[%emt 0:03:22]} Be7 {[%emt 0:00:09]} 10. O-O {[%emt 0:00:12]} O-O {[%emt 0:00:36]} 11. Qe1 {[%emt 0:00:26]} Nbd7 {[%emt 0:00:35]} 12. Qg3 {[%emt 0:03:33]} Ne5 {[%emt 0:01:56]} 13. Rad1 {[%emt 0:02:06]} Rc8 {[%emt 0:01:05]} 14. Rd2 {[%emt 0:08:39]} Ne8 {[%emt 0:05:51]} 15. f4 {[%emt 0:09:34]} Nc4 {[%emt 0:01:25]} 16. Bxc4 {[%emt 0:01:35]} Rxc4 {[%emt 0:00:02]} 17. e5 {[%emt 0:13:45]} Qc7 {[%emt 0:04:34]} 18. Rfd1 {[%emt 0:06:22]} b4 {[%emt 0:06:43]} 19. axb4 {[%emt 0:00:57]} Rxb4 {[%emt 0:00:29]} 20. Nb3 {[%emt 0:01:24]} a5 {[%emt 0:05:22]} 21. Bd4 {[%emt 0:06:45]} a4 {[%emt 0:05:05]} 22. Nc1 {[%emt 0:02:04]} Qc6 {[%emt 0:14:37]} 23. N1a2 {[%emt 0:06:30]} Rc4 {[%emt 0:08:58]} 24. b3 {[%emt 0:03:13]} axb3 {[%emt 0:03:13]} 25. cxb3 {[%emt 0:00:07]} Rxd4 {[%emt 0:00:59]} 26. Rxd4 {[%emt 0:00:06]} d5 {[%emt 0:00:05]} 27. Kh1 {[%emt 0:01:52]} Qb6 {[%emt 0:00:32]} 28. f5 {[%emt 0:02:06]} f6 {[%emt 0:02:26]} 29. fxe6 {[%emt 0:04:25]} fxe5 {[%emt 0:01:08]} 30. R4d2 {[%emt 0:05:28]} d4 {[%emt 0:00:27]} 31. Nb1 {[%emt 0:09:26]} e4 {[%emt 0:00:59]} 32. h3 {[%emt 0:01:31]} Bd6 {[%emt 0:02:48]} 33. Qg4 {[%emt 0:01:45]} Qa6 {[%emt 0:02:37]} 34. Qe2 {[%emt 0:01:14]} d3 {[%emt 0:02:06]} 35. Qh5 {[%emt 0:01:42]} e3 {[%emt 0:01:05]} 36. e7 {[%emt 0:00:49]} Rf7 {[%emt 0:00:59]} 37. Rxd3 {[%emt 0:01:10]} Qc6 {[%emt 0:03:54]} 38. Qg4 {[%emt 0:00:36]} Rf2 {[%emt 0:00:48]} 39. Rg1 {[%emt 0:02:06]} e2 {[%emt 0:05:17]} 40. Qe6+ {[%emt 0:00:24]} Kh8 {[%emt 0:00:19]} 41. Rxd6 {[%emt 0:06:44]} Qxd6 {[%emt 0:02:01]} 42. Qe3 {[%emt 0:05:19]} Qf6 {[%emt 0:02:18]} 43. Nd2 {[%emt 0:01:46]} Qh4 {[%emt 0:07:28]} 44. Nc3 {[%emt 0:01:37]} Bxg2+ {[%emt 0:08:24]} 45. Rxg2 {[%emt 0:01:17]} Rf1+ {[%emt 0:01:18]} 46. Nxf1 {[%emt 0:01:41]} exf1=Q+ {[%emt 0:00:21]} 47. Kh2 {[%emt 0:00:00]} Qff4+ {[%emt 0:01:29]} 48. Qxf4 {[%emt 0:00:00]} Qxf4+ {[%emt 0:00:12]} 49. Kh1 {[%emt 0:03:34]} Qc1+ {[%emt 0:00:27]} 50. Rg1 {[%emt 0:00:06]} Qxc3 {[%emt 0:00:18]} 51. Rf1 {[%emt 0:00:18]} Qxh3+ {[%emt 0:00:21]} 52. Kg1 {[%emt 0:00:07]} Qe3+ {[%emt 0:00:19]} 53. Kh1 {[%emt 0:00:08]} Qxe7 {[%emt 0:00:12]} 0-1

[Event "Niedersachsen-ch A 2024"]
[Site "Verden Aller"]
[Date "2024.01.06"]
[Round "5.1"]
[White "Lichtmannecker, Daniel"]
[Black "Jacobi, Felix-Hagen"]
[Result "1-0"]
[ECO "A44"]
[WhiteElo "2124"]
[BlackElo "2056"]
[Annotator "RC"]
[PlyCount "95"]
[EventDate "2024.01.01"]
[EventType "swiss"]
[EventCountry "GER"]
[SourceTitle "playchess.com"]
[Source "ChessBase"]
[SourceQuality "1"]
[TimeControl "40/5400+30:1800+30"]

1. d4 {[%emt 0:00:05]} c5 {[%emt 0:00:12]} 2. d5 {[%emt 0:00:10]} e5 {[%emt 1:31:18]} 3. e4 {[%emt 0:00:07]} d6 {[%emt 0:00:31]} 4. Bb5+ {[%emt 0:00:12]} Nd7 {[%emt 0:01:24]} 5. a4 {[%emt 0:00:28]} a6 {[%emt 0:03:52]} 6. Bd3 {[%emt 0:00:28]} Be7 {[%emt 0:00:18]} 7. Nf3 {[%emt 0:00:15]} h6 {[%emt 0:00:34]} 8. Nc3 {[%emt 0:00:23]} Bg5 {[%emt 1:27:32]} 9. Nxg5 {[%emt 0:00:09]} hxg5 {[%emt 0:00:08]} 10. Qe2 {[%emt 0:00:15]} f6 {[%emt 0:05:47]} 11. Nd1 {[%emt 0:00:10]} Nf8 {[%emt 0:06:52]} 12. Ne3 {[%emt 1:33:48]} Ng6 {[%emt 0:00:16]} 13. g3 {[%emt 0:00:24]} N8e7 {[%emt 0:05:04]} 14. Bd2 {[%emt 0:04:04]} a5 {[%emt 0:14:27]} 15. Nc4 {[%emt 0:09:29]} Qc7 {[%emt 0:04:49]} 16. f3 {[%emt 0:02:30]} Bd7 {[%emt 0:02:48]} 17. Kf2 {[%emt 0:03:47]} Kf7 {[%emt 0:03:31]} 18. b3 {[%emt 0:11:10]} Rh7 {[%emt 0:10:12]} 19. Rag1 {[%emt 0:06:41]} b6 {[%emt 0:01:24]} 20. Ne3 {[%emt 0:01:34]} Rah8 {[%emt 0:01:42]} 21. Ke1 {[%emt 0:02:39]} Rh5 {[%emt 0:36:20]} 22. Qf2 {[%emt 0:07:37]} R8h7 {[%emt 0:01:49]} 23. Nc4 {[%emt 0:04:42]} Nc8 {[%emt 0:00:36]} 24. f4 {[%emt 0:14:05]} gxf4 {[%emt 0:10:29]} 25. gxf4 {[%emt 0:00:14]} Nxf4 {[%emt 0:00:24]} 26. Bxf4 {[%emt 0:00:44]} exf4 {[%emt 0:00:34]} 27. Qxf4 {[%emt 0:02:00]} R7h6 {[%emt 0:05:17]} 28. h4 {[%emt 0:03:40]} g5 {[%emt 0:01:40]} 29. Qf3 {[%emt 0:09:04]} Rxh4 {[%emt 0:00:10]} 30. Rxh4 {[%emt 0:00:14]} Rxh4 {[%emt 0:02:12]} 31. Rxg5 {[%emt 0:00:49]} Qd8 {[%emt 0:00:21]} 32. e5 {[%emt 0:06:50]} Qh8 {[%emt 0:04:00]} 33. e6+ {[%emt 0:01:10]} Ke7 {[%emt 0:00:15]} 34. Rg1 {[%emt 0:03:07]} Be8 {[%emt 0:07:13]} 35. Ne3 {[%emt 0:07:22]} Rh3 {[%emt 0:01:25]} 36. Nf5+ {[%emt 0:00:12]} Kd8 {[%emt 0:00:06]} 37. Rg3 {[%emt 0:03:19]} Rh1+ {[%emt 0:01:33]} 38. Kd2 {[%emt 0:04:09]} Ne7 {[%emt 0:02:46]} 39. Nxd6 {[%emt 0:01:13]} Qh6+ {[%emt 0:00:41]} 40. Kc3 {[%emt 0:02:04]} Qc1 {[%emt 0:01:18]} 41. Qe4 {[%emt 0:18:23]} Qa1+ {[%emt 0:20:38]} 42. Kc4 {[%emt 0:00:18]} Re1 {[%emt 0:01:05]} 43. Re3 {[%emt 0:02:56]} Qa3 {[%emt 0:01:10]} 44. c3 {[%emt 0:00:40]} Bxa4 {[%emt 0:02:57]} 45. Bc2 {[%emt 0:01:04]} b5+ {[%emt 0:06:20]} 46. Nxb5 {[%emt 0:01:08]} Rxe3 {[%emt 0:02:10]} 47. Nxa3 {[%emt 0:01:50]} Rxe4+ {[%emt 0:00:29]} 48. Bxe4 {[%emt 0:00:07]} 1-0

[Event "Niedersachsen-ch A 2024"]
[Site "Verden Aller"]
[Date "2024.01.06"]
[Round "5.2"]
[White "Hebbinghaus, Holger"]
[Black "Peters, Tom"]
[Result "1-0"]
[ECO "B30"]
[WhiteElo "2164"]
[BlackElo "2102"]
[Annotator "RC"]
[PlyCount "111"]
[EventDate "2024.01.01"]
[EventType "swiss"]
[EventCountry "GER"]
[SourceTitle "playchess.com"]
[Source "ChessBase"]
[SourceQuality "1"]
[TimeControl "40/5400+30:1800+30"]

1. e4 {[%emt 0:00:03]} c5 {[%emt 0:00:32]} 2. Nf3 {[%emt 0:00:07]} Nc6 {[%emt 0:02:08]} 3. Bb5 {[%emt 0:00:13]} Nd4 {[%emt 0:02:57]} 4. Nxd4 {[%emt 0:04:53]} cxd4 {[%emt 0:02:05]} 5. c3 {[%emt 0:01:08]} e5 {[%emt 0:03:29]} 6. cxd4 {[%emt 0:05:41]} exd4 {[%emt 0:00:08]} 7. O-O {[%emt 0:00:14]} Ne7 {[%emt 0:03:48]} 8. d3 {[%emt 0:14:15]} Nc6 {[%emt 0:11:09]} 9. Nd2 {[%emt 0:07:13]} Be7 {[%emt 0:09:33]} 10. Nf3 {[%emt 0:05:14]} O-O {[%emt 0:11:26]} 11. a3 {[%emt 0:02:39]} a6 {[%emt 0:04:46]} 12. Bc4 {[%emt 0:00:35]} d6 {[%emt 0:03:51]} 13. b4 {[%emt 0:04:47]} Bg4 {[%emt 0:03:29]} 14. h3 {[%emt 0:02:36]} Bh5 {[%emt 0:00:34]} 15. g4 {[%emt 0:05:26]} Bg6 {[%emt 0:00:02]} 16. Bb2 {[%emt 0:02:14]} Bf6 {[%emt 0:07:52]} 17. Bd5 {[%emt 0:02:37]} h5 {[%emt 0:20:10]} 18. Nd2 {[%emt 0:16:56]} hxg4 {[%emt 0:02:49]} 19. hxg4 {[%emt 0:00:12]} Ne5 {[%emt 0:04:15]} 20. Nc4 {[%emt 0:00:40]} Qd7 {[%emt 0:00:44]} 21. Nb6 {[%emt 0:04:55]} Qb5 {[%emt 0:00:05]} 22. Nxa8 {[%emt 0:00:04]} Rxa8 {[%emt 0:00:04]} 23. Bxd4 {[%emt 0:01:08]} Nxg4 {[%emt 0:01:35]} 24. Qxg4 {[%emt 0:01:13]} Bxd4 {[%emt 0:00:07]} 25. Qxg6 {[%emt 0:00:49]} Qxd5 {[%emt 0:00:07]} 26. exd5 {[%emt 0:00:58]} fxg6 {[%emt 0:00:03]} 27. Rac1 {[%emt 0:00:47]} a5 {[%emt 0:03:15]} 28. Rc4 {[%emt 0:01:31]} Bb6 {[%emt 0:00:12]} 29. Rfc1 {[%emt 0:00:37]} Kf7 {[%emt 0:01:36]} 30. Rc8 {[%emt 0:04:47]} Ra7 {[%emt 0:00:05]} 31. R1c2 {[%emt 0:00:37]} axb4 {[%emt 0:00:22]} 32. axb4 {[%emt 0:00:05]} Ra4 {[%emt 0:00:55]} 33. Rb8 {[%emt 0:01:39]} Rxb4 {[%emt 0:00:43]} 34. Rxb7+ {[%emt 0:00:08]} Kf6 {[%emt 0:00:07]} 35. d4 {[%emt 0:01:12]} Kf5 {[%emt 0:01:14]} 36. Re2 {[%emt 0:00:49]} Ba5 {[%emt 0:00:55]} 37. Rxb4 {[%emt 0:00:38]} Bxb4 {[%emt 0:00:04]} 38. f3 {[%emt 0:02:17]} g5 {[%emt 0:01:10]} 39. Re4 {[%emt 0:00:13]} Bd2 {[%emt 0:00:24]} 40. Re7 {[%emt 0:02:54]} Bc3 {[%emt 0:01:02]} 41. Re4 {[%emt 0:30:42]} Bd2 {[%emt 0:02:34]} 42. Kg2 {[%emt 0:00:00]} Bf4 {[%emt 0:00:42]} 43. Re7 {[%emt 0:00:00]} Kf6 {[%emt 0:00:48]} 44. Re6+ {[%emt 0:00:00]} Kf5 {[%emt 0:01:12]} 45. Kh3 {[%emt 0:00:00]} g6 {[%emt 0:04:52]} 46. Re8 {[%emt 0:00:00]} Kf6 {[%emt 0:02:56]} 47. Kg4 {[%emt 0:00:00]} Kf7 {[%emt 0:00:15]} 48. Re6 {[%emt 0:00:00]} Kg7 {[%emt 0:00:20]} 49. Kh3 {[%emt 0:00:00]} Kf7 {[%emt 0:01:21]} 50. Kg2 {[%emt 0:00:00]} Kg7 {[%emt 0:03:06]} 51. Kf1 {[%emt 0:00:00]} Bg3 {[%emt 0:01:05]} 52. Ke2 {[%emt 0:00:00]} Bf4 {[%emt 0:04:23]} 53. Kd3 {[%emt 0:00:00]} Kh6 {[%emt 0:03:28]} 54. Re7 {[%emt 0:00:00]} Bc1 {[%emt 0:04:49]} 55. Kc4 {[%emt 0:00:00]} Bb2 {[%emt 0:05:34]} 56. Rd7 {[%emt 0:00:00]} 1-0

[Event "Niedersachsen-ch A 2024"]
[Site "Verden Aller"]
[Date "2024.01.06"]
[Round "5.3"]
[White "Celik, Abdullah"]
[Black "Stotyn, Fabian"]
[Result "0-1"]
[ECO "D36"]
[WhiteElo "2081"]
[BlackElo "2139"]
[Annotator "RC"]
[PlyCount "96"]
[EventDate "2024.01.01"]
[EventType "swiss"]
[EventCountry "GER"]
[SourceTitle "playchess.com"]
[Source "ChessBase"]
[SourceQuality "1"]
[TimeControl "40/5400+30:1800+30"]

1. d4 {[%emt 0:00:01]} Nf6 {[%emt 0:00:51]} 2. c4 {[%emt 0:00:18]} e6 {[%emt 0:00:04]} 3. Nc3 {[%emt 0:00:04]} d5 {[%emt 0:00:06]} 4. cxd5 {[%emt 0:00:03]} exd5 {[%emt 0:00:09]} 5. Bg5 {[%emt 0:00:04]} Be7 {[%emt 0:00:33]} 6. Qc2 {[%emt 0:00:05]} c6 {[%emt 0:00:38]} 7. e3 {[%emt 0:00:16]} Nbd7 {[%emt 0:01:14]} 8. Bd3 {[%emt 1:33:39]} Nf8 {[%emt 1:30:55]} 9. h3 {[%emt 0:00:00]} Ne6 {[%emt 0:00:00]} 10. Bh4 {[%emt 0:00:00]} Nh5 {[%emt 0:00:00]} 11. Bxe7 {[%emt 0:00:00]} Qxe7 {[%emt 0:00:00]} 12. O-O-O {[%emt 0:00:00]} Nf6 {[%emt 0:00:00]} 13. Nf3 {[%emt 0:00:00]} Bd7 {[%emt 0:00:00]} 14. Kb1 {[%emt 0:00:00]} O-O-O {[%emt 0:00:00]} 15. Rc1 {[%emt 0:00:00]} Kb8 {[%emt 0:00:00]} 16. Ne5 {[%emt 0:00:00]} g6 {[%emt 0:00:00]} 17. Na4 {[%emt 0:04:30]} Ne8 {[%emt 0:00:00]} 18. Qb3 {[%emt 0:00:00]} Ka8 {[%emt 0:00:00]} 19. Be2 {[%emt 0:00:00]} f6 {[%emt 0:00:00]} 20. Nd3 {[%emt 0:00:00]} Nxd4 {[%emt 0:00:00]} 21. exd4 {[%emt 0:00:00]} Qxe2 {[%emt 0:00:00]} 22. Nac5 {[%emt 0:00:00]} Nd6 {[%emt 0:00:00]} 23. Rhe1 {[%emt 0:00:00]} Qd2 {[%emt 0:00:00]} 24. g4 {[%emt 0:00:00]} Qa5 {[%emt 0:00:00]} 25. Re7 {[%emt 0:00:00]} Bc8 {[%emt 0:00:00]} 26. Nf4 {[%emt 0:00:00]} Rde8 {[%emt 0:00:00]} 27. Qe3 {[%emt 0:00:00]} Ne4 {[%emt 0:00:00]} 28. Rxe8 {[%emt 0:00:00]} Rxe8 {[%emt 0:00:00]} 29. Nb3 {[%emt 0:00:00]} Qd8 {[%emt 0:00:00]} 30. Re1 {[%emt 0:00:00]} Nd6 {[%emt 0:00:00]} 31. Qd2 {[%emt 0:00:00]} Re7 {[%emt 0:00:00]} 32. Rxe7 {[%emt 0:00:14]} Qxe7 {[%emt 0:00:00]} 33. f3 {[%emt 0:00:02]} Nc4 {[%emt 0:00:00]} 34. Qf2 {[%emt 0:00:40]} f5 {[%emt 0:00:00]} 35. Nd2 {[%emt 0:02:00]} Nd6 {[%emt 0:00:00]} 36. Nf1 {[%emt 0:02:16]} fxg4 {[%emt 0:00:00]} 37. hxg4 {[%emt 0:00:12]} Qf8 {[%emt 0:00:00]} 38. Qh2 {[%emt 0:02:08]} Nb5 {[%emt 0:00:00]} 39. Nd2 {[%emt 0:02:39]} Nxd4 {[%emt 0:00:00]} 40. a3 {[%emt 0:00:26]} g5 {[%emt 0:00:00]} 41. Nd3 {[%emt 0:06:37]} Nxf3 {[%emt 0:00:00]} 42. Nxf3 {[%emt 0:00:06]} Qxf3 {[%emt 0:00:00]} 43. Ne5 {[%emt 0:00:10]} Qe4+ {[%emt 0:00:00]} 44. Ka1 {[%emt 0:00:07]} a6 {[%emt 0:00:00]} 45. Qg3 {[%emt 0:00:39]} d4 {[%emt 0:00:00]} 46. b3 {[%emt 0:06:52]} Be6 {[%emt 0:00:00]} 47. Kb2 {[%emt 0:03:59]} Qe2+ {[%emt 0:00:00]} 48. Kc1 {[%emt 0:00:19]} Bxb3 {[%emt 0:01:41]} 0-1

[Event "Niedersachsen-ch A 2024"]
[Site "Verden Aller"]
[Date "2024.01.06"]
[Round "5.4"]
[White "Carlstedt, Jonathan"]
[Black "Hoellmann, Ludger"]
[Result "0-1"]
[ECO "B12"]
[WhiteElo "2447"]
[BlackElo "2015"]
[Annotator "RC"]
[PlyCount "76"]
[EventDate "2024.01.01"]
[EventType "swiss"]
[EventCountry "GER"]
[SourceTitle "playchess.com"]
[Source "ChessBase"]
[SourceQuality "1"]
[TimeControl "40/5400+30:1800+30"]

1. e4 {[%emt 0:00:35]} c6 {[%emt 0:02:52]} 2. d4 {[%emt 0:02:43]} d5 {[%emt 0:00:07]} 3. e5 {[%emt 0:00:05]} c5 {[%emt 0:00:04]} 4. Nf3 {[%emt 0:00:18]} cxd4 {[%emt 0:32:59]} 5. Nxd4 {[%emt 0:00:52]} e6 {[%emt 0:01:55]} 6. Nc3 {[%emt 0:07:07]} Nc6 {[%emt 0:00:57]} 7. Bb5 {[%emt 0:00:15]} Bd7 {[%emt 0:01:53]} 8. O-O {[%emt 0:00:31]} Nge7 {[%emt 0:00:59]} 9. Bg5 {[%emt 0:10:49]} h6 {[%emt 0:15:12]} 10. Bh4 {[%emt 0:04:54]} Nxd4 {[%emt 0:04:27]} 11. Qxd4 {[%emt 0:02:35]} Nf5 {[%emt 0:00:41]} 12. Qa4 {[%emt 0:00:26]} g5 {[%emt 0:02:15]} 13. Bg3 {[%emt 0:01:40]} a6 {[%emt 0:00:12]} 14. Bxd7+ {[%emt 0:04:16]} Qxd7 {[%emt 0:00:02]} 15. Qxd7+ {[%emt 0:00:08]} Kxd7 {[%emt 0:00:01]} 16. f4 {[%emt 0:00:14]} Rc8 {[%emt 0:10:46]} 17. Rac1 {[%emt 0:00:57]} Bc5+ {[%emt 0:01:40]} 18. Bf2 {[%emt 0:05:16]} Ne3 {[%emt 0:01:12]} 19. Na4 {[%emt 0:00:08]} gxf4 {[%emt 0:06:57]} 20. Nxc5+ {[%emt 0:00:33]} Rxc5 {[%emt 0:00:01]} 21. Bxe3 {[%emt 0:00:17]} fxe3 {[%emt 0:00:01]} 22. Rxf7+ {[%emt 0:00:08]} Kc6 {[%emt 0:00:19]} 23. Rf4 {[%emt 0:02:45]} Rg8 {[%emt 0:00:47]} 24. h4 {[%emt 0:01:23]} b5 {[%emt 0:01:21]} 25. c3 {[%emt 0:01:50]} Rc4 {[%emt 0:00:22]} 26. Rf6 {[%emt 0:03:04]} d4 {[%emt 0:00:21]} 27. Re1 {[%emt 0:01:39]} dxc3 {[%emt 0:01:55]} 28. bxc3 {[%emt 0:00:05]} Rxc3 {[%emt 0:00:11]} 29. h5 {[%emt 0:01:57]} Kd5 {[%emt 0:01:26]} 30. Rxh6 {[%emt 0:00:22]} Rg5 {[%emt 0:00:29]} 31. Re2 {[%emt 0:02:20]} Kxe5 {[%emt 0:01:00]} 32. Rh8 {[%emt 0:00:11]} Ke4 {[%emt 0:00:21]} 33. h6 {[%emt 0:00:24]} Rc1+ {[%emt 0:01:45]} 34. Kh2 {[%emt 0:00:27]} Kd3 {[%emt 0:00:02]} 35. Rb2 {[%emt 0:02:26]} e2 {[%emt 0:00:10]} 36. Rd8+ {[%emt 0:01:41]} Ke3 {[%emt 0:00:34]} 37. Rb3+ {[%emt 0:00:21]} Ke4 {[%emt 0:00:26]} 38. Rd6 {[%emt 0:00:22]} Rh1+ {[%emt 0:03:05]} 0-1